fUSD/lending_fUSD_20241223
["ID","MTS","AMOUNT","RATE_DAILY","PERIOD"]
[346459129,1734983486503,-8415.59,0.00015342,2]
[346459130,1734983486513,-792.97,0.00015342,2]
[346459131,1734983486523,-500.0,0.00015342,2]
[346459132,1734983486533,-3919.46,0.00015342,2]
[346459133,1734983486542,-3391.19,0.00015342,2]
[346459134,1734983486552,-834.47,0.00015342,2]
[346459135,1734983486561,-636.38,0.00015342,2]
[346459136,1734983486570,-2742.37,0.00015342,2]
[346459137,1734983486580,-1027.57,0.00015342,2]
[346459138,1734983486589,-181.814851,0.00015342,2]
[346459139,1734983486690,-500.0,0.00015342,2]
[346459140,1734983486700,-847.46,0.00015342,2]
[346459141,1734983486710,-9012.3,0.00015342,2]
[346459142,1734983486718,-181.814851,0.00015342,2]
[346459143,1734983486728,-555.96,0.00015342,2]
[346459144,1734983486738,-500.0,0.00015342,2]
[346459145,1734983486747,-500.0,0.00015342,2]
[346459146,1734983486756,-500.0,0.00015342,2]
[346459147,1734983486766,-5252.8,0.00015342,2]
[346459148,1734983486776,-500.0,0.00015342,2]
[346459149,1734983486787,-6315.37,0.00015342,2]
[346459150,1734983486796,-4008.04,0.00015342,2]
[346459151,1734983486805,-7027.53,0.00015342,2]
[346459152,1734983486815,-500.0,0.00015342,2]
[346459153,1734983486824,-1696.77,0.00015342,2]
[346459154,1734983486834,-151.0,0.00015342,2]
[346459155,1734983486843,-500.0,0.00015342,2]
[346459156,1734983486852,-500.0,0.00015342,2]
[346459157,1734983486861,-500.0,0.00015342,2]
[346459158,1734983486871,-151.0,0.00015342,2]
[346459159,1734983486880,-500.0,0.00015342,2]
[346459160,1734983486889,-2000.3,0.00015342,2]
[346459161,1734983486898,-3154.52,0.00015342,2]
[346459162,1734983486908,-5968.56,0.00015342,2]
[346459163,1734983486917,-14873.62,0.00015342,2]
[346459164,1734983486927,-2211.27,0.00015342,2]
[346459165,1734983486936,-500.0,0.00015342,2]
[346459166,1734983486946,-1066.69,0.00015342,2]
[346459167,1734983486956,-500.0,0.00015342,2]
[346459168,1734983486966,-500.0,0.00015342,2]
[346459169,1734983486975,-500.0,0.00015342,2]
[346459170,1734983486985,-500.0,0.00015342,2]
[346459171,1734983486994,-659.11,0.00015342,2]
[346459172,1734983487003,-500.0,0.00015342,2]
[346459173,1734983487012,-564.57,0.00015342,2]
[346459174,1734983487022,-3866.62,0.00015342,2]
[346459175,1734983487031,-783.78,0.00015342,2]
[346459176,1734983487040,-2330.64,0.00015342,2]
[346459177,1734983487049,-18570.76,0.00015342,2]
[346459178,1734983487058,-500.0,0.00015342,2]
[346459179,1734983487068,-508.97,0.00015342,2]
[346459180,1734983487078,-20926.66,0.00015342,2]
[346459181,1734983487088,-829.84,0.00015342,2]
[346459182,1734983487098,-500.0,0.00015342,2]
[346459183,1734983487107,-500.0,0.00015342,2]
[346459184,1734983487116,-3757.16,0.00015342,2]
[346459185,1734983487125,-151.0,0.00015342,2]
[346459186,1734983487134,-607.52,0.00015342,2]
[346459187,1734983487143,-7925.4,0.00015342,2]
[346459188,1734983487153,-500.0,0.00015342,2]
[346459189,1734983487162,-500.0,0.00015342,2]
[346459190,1734983487171,-500.0,0.00015342,2]
[346459191,1734983487179,-2302.97,0.00015342,2]
[346459192,1734983487189,-1003.84,0.00015342,2]
[346459193,1734983487198,-7966.95,0.00015342,2]
[346459194,1734983487207,-2515.91,0.00015342,2]
[346459195,1734983487217,-698.68,0.00015342,2]
[346459196,1734983487228,-2630.63,0.00015342,2]
[346459197,1734983487237,-500.0,0.00015342,2]
[346459198,1734983487247,-839.13,0.00015342,2]
[346459199,1734983487255,-9927.13,0.00015342,2]
[346459200,1734983487265,-1217.3,0.00015342,2]
[346459201,1734983487275,-2519.57,0.00015342,2]
[346459202,1734983487284,-1299.48,0.00015342,2]
[346459203,1734983487294,-4244.12,0.00015342,2]
[346459204,1734983487303,-1241.24,0.00015342,2]
[346459205,1734983487312,-500.0,0.00015342,2]
[346459206,1734983487321,-1685.46,0.00015342,2]
[346459207,1734983487330,-500.0,0.00015342,2]
[346459208,1734983487340,-1846.67,0.00015342,2]
[346459209,1734983487348,-500.0,0.00015342,2]
[346459210,1734983487357,-614.81,0.00015342,2]
[346459211,1734983487366,-3928.29,0.00015342,2]
[346459212,1734983487375,-500.0,0.00015342,2]
[346459213,1734983487384,-500.0,0.00015342,2]
[346459214,1734983487394,-500.0,0.00015342,2]
[346459215,1734983487404,-4088.25,0.00015342,2]
[346459216,1734983487412,-2122.09,0.00015342,2]
[346459217,1734983487422,-695.21,0.00015342,2]
[346459218,1734983487431,-3723.91,0.00015342,2]
[346459219,1734983487440,-1404.9,0.00015342,2]
[346459220,1734983487449,-500.0,0.00015342,2]
[346459221,1734983487458,-8672.72,0.00015342,2]
[346459222,1734983487467,-151.0,0.00015342,2]
[346459223,1734983487477,-500.0,0.00015342,2]
[346459224,1734983487486,-500.0,0.00015342,2]
[346459225,1734983487496,-500.0,0.00015342,2]
[346459226,1734983487506,-1063.46,0.00015342,2]
[346459227,1734983487517,-7447.88,0.00015342,2]
[346459228,1734983487527,-151.0,0.00015342,2]
[346459229,1734983487537,-26356.9,0.00015342,2]
[346459230,1734983487547,-8864.44,0.00015342,2]
[346459231,1734983487557,-2573.11,0.00015342,2]
[346459232,1734983487567,-3886.04,0.00015342,2]
[346459233,1734983487576,-1878.68,0.00015342,2]
[346459234,1734983487586,-5445.13,0.00015342,2]
[346459235,1734983487596,-1319.96,0.00015342,2]
[346459236,1734983487606,-500.0,0.00015342,2]
[346459237,1734983487616,-3366.1,0.00015342,2]
[346459238,1734983487626,-500.0,0.00015342,2]
[346459239,1734983487635,-8257.73,0.00015342,2]
[346459240,1734983487645,-1348.11,0.00015342,2]
[346459241,1734983487655,-1344.55,0.00015342,2]
[346459242,1734983487665,-1044.67,0.00015342,2]
[346459243,1734983487674,-590.09,0.00015342,2]
[346459244,1734983487684,-1845.89,0.00015342,2]
[346459245,1734983487694,-2303.4,0.00015342,2]
[346459246,1734983487704,-500.0,0.00015342,2]
[346459247,1734983487714,-3629.68,0.00015342,2]
[346459248,1734983487723,-500.0,0.00015342,2]
[346459249,1734983487733,-646.74,0.00015342,2]
[346459250,1734983487743,-1782.54,0.00015342,2]
[346459251,1734983487752,-1508.2,0.00015342,2]
[346459252,1734983487762,-500.0,0.00015342,2]
[346459253,1734983487772,-1473.1,0.00015342,2]
[346459254,1734983487782,-2479.51,0.00015342,2]
[346459255,1734983487792,-4816.5,0.00015342,2]
[346459256,1734983487802,-594.99,0.00015342,2]
[346459257,1734983487812,-614.37,0.00015342,2]
[346459258,1734983487822,-1302.53,0.00015342,2]
[346459259,1734983487832,-2115.39,0.00015342,2]
[346459260,1734983487842,-1084.22,0.00015342,2]
[346459261,1734983487853,-4086.58,0.00015342,2]
[346459262,1734983487862,-165.19057036,0.00015443,2]
[346459263,1734983487873,-562.42,0.00015478,2]
[346459264,1734983487883,-1000.0,0.00015509,2]
[346459265,1734983487894,-562.42,0.00015615,2]
[346459266,1734983487904,-3858.37,0.00015615,2]
[346459267,1734983487914,-4101.31,0.00015615,2]
[346459268,1734983487924,-7168.53,0.00015615,2]
[346459269,1734983487935,-7733.77,0.00015615,2]
[346459270,1734983487945,-37490.71,0.00015615,2]
[346459271,1734983487956,-4045.76,0.00015615,2]
[346459272,1734983487966,-3336.73,0.00015615,2]
[346459273,1734983487976,-1980.4,0.00015615,2]
[346459274,1734983487987,-5333.98,0.00015615,2]
[346459275,1734983487998,-27080.99,0.00015615,2]
[346459276,1734983488008,-1435.78,0.00015615,2]
[346459277,1734983488019,-3942.55,0.00015615,2]
[346459278,1734983488029,-3489.33,0.00015615,2]
[346459279,1734983488041,-2639.66,0.00015615,2]
[346459280,1734983488051,-5019.99,0.00015615,2]
[346459281,1734983488061,-500.0,0.00015615,2]
[346459282,1734983488071,-1258.46,0.00015615,2]
[346459283,1734983488081,-3190.49,0.00015615,2]
[346459284,1734983488091,-3377.35,0.00015615,2]
[346459285,1734983488101,-757.99,0.00015616,2]
[346459286,1734983488111,-1506.47,0.00015616,2]
[346459287,1734983488121,-500.0,0.00015616,2]
[346459288,1734983488131,-622.17,0.00015616,2]
[346459289,1734983488141,-500.0,0.00015616,2]
[346459290,1734983488150,-745.34,0.00015616,2]
[346459291,1734983488160,-1355.56,0.00015616,2]
[346459292,1734983488170,-500.0,0.00015616,2]
[346459293,1734983488179,-500.0,0.00015616,2]
[346459294,1734983488189,-943.39,0.00015616,2]
[346459295,1734983488199,-500.0,0.00015616,2]
[346459296,1734983488208,-500.0,0.00015616,2]
[346459297,1734983488219,-1112.52,0.00015616,2]
[346459298,1734983488232,-500.0,0.00015616,2]
[346459299,1734983488242,-500.0,0.00015616,2]
[346459300,1734983488252,-790.69,0.00015616,2]
[346459301,1734983488263,-500.0,0.00015616,2]
[346459302,1734983488274,-855.0,0.00015616,2]
[346459303,1734983488284,-500.0,0.00015616,2]
[346459304,1734983488294,-876.69,0.00015616,2]
[346459305,1734983488305,-562.06,0.00015616,2]
[346459306,1734983488314,-500.0,0.00015616,2]
[346459307,1734983488324,-847.08,0.00015616,2]
[346459308,1734983488334,-867.59,0.00015616,2]
[346459309,1734983488344,-500.0,0.00015616,2]
[346459310,1734983488353,-895.5,0.00015616,2]
[346459311,1734983488363,-500.0,0.00015616,2]
[346459312,1734983488373,-500.0,0.00015616,2]
[346459313,1734983488383,-1304.71,0.00015616,2]
[346459314,1734983488393,-500.0,0.00015616,2]
[346459315,1734983488402,-1693.88,0.00015616,2]
[346459316,1734983488412,-500.0,0.00015616,2]
[346459317,1734983488423,-536.47,0.00015616,2]
[346459318,1734983488432,-308.26581363,0.00015616,2]
[346459319,1734983488442,-500.0,0.00015616,2]
[346459320,1734983488452,-704.56,0.00015616,2]
[346459321,1734983488462,-1063.61,0.00015616,2]
[346459322,1734983488472,-729.4,0.00015616,2]
[346459323,1734983488482,-439.44094621,0.00015616,2]
[346459324,1734983488492,-1288.05,0.00015616,2]
[346459325,1734983488502,-500.0,0.00015616,2]
[346459326,1734983488513,-500.0,0.00015616,2]
[346459327,1734983488523,-876.88,0.00015616,2]
[346459328,1734983488533,-500.0,0.00015616,2]
[346459329,1734983488543,-500.0,0.00015616,2]
[346459330,1734983488553,-627.92,0.00015616,2]
[346459331,1734983488563,-837.11,0.00015616,2]
[346459332,1734983488577,-500.0,0.00015616,2]
[346459333,1734983488596,-500.0,0.00015616,2]
[346459334,1734983488609,-715.29,0.00015616,2]
[346459335,1734983488625,-500.0,0.00015616,2]
[346459336,1734983488641,-503.14,0.00015616,2]
[346459337,1734983488659,-500.0,0.00015616,2]
[346459338,1734983488671,-693.1,0.00015616,2]
[346459339,1734983488687,-1639.04,0.00015616,2]
[346459340,1734983488703,-500.0,0.00015616,2]
[346459341,1734983488720,-909.84,0.00015616,2]
[346459342,1734983488737,-1025.51,0.00015616,2]
[346459343,1734983488752,-2789.796411,0.00015616,2]
[346459344,1734983488768,-3350.644444,0.00015616,2]
[346459345,1734983488784,-1267.55,0.00015616,2]
[346459346,1734983488798,-500.0,0.00015616,2]
[346459347,1734983488810,-955.34,0.00015616,2]
[346459348,1734983488827,-1230.42,0.00015616,2]
[346459349,1734983488840,-1124.42,0.00015616,2]
[346459350,1734983488852,-500.0,0.00015616,2]
[346459351,1734983488868,-649.71,0.00015616,2]
[346459352,1734983488881,-268.57832306,0.00015616,2]
[346459353,1734983488898,-713.56,0.00015616,2]
[346459354,1734983488912,-500.0,0.00015616,2]
[346459355,1734983488925,-500.0,0.00015616,2]
[346459356,1734983488938,-500.0,0.00015616,2]
[346459357,1734983488951,-1323.13,0.00015616,2]
[346459358,1734983488965,-958.59,0.00015616,2]
[346459359,1734983488978,-938.95,0.00015616,2]
[346459360,1734983488993,-1909.64,0.00015616,2]
[346459361,1734983489005,-1467.51,0.00015616,2]
[346459362,1734983489019,-958.62,0.00015616,2]
[346459363,1734983489032,-500.0,0.00015616,2]
[346459364,1734983489045,-563.5,0.00015616,2]
[346459365,1734983489058,-1353.65,0.00015616,2]
[346459366,1734983489072,-743.02,0.00015616,2]
[346459367,1734983489085,-500.0,0.00015616,2]
[346459368,1734983489100,-2120.2,0.00015616,2]
[346459369,1734983489114,-768.8,0.00015616,2]
[346459370,1734983489128,-999.63,0.00015616,2]
[346459371,1734983489143,-500.0,0.00015616,2]
[346459372,1734983489158,-730.43,0.00015616,2]
[346459373,1734983489172,-1571.45,0.00015616,2]
[346459374,1734983489186,-712.07,0.00015616,2]
[346459375,1734983489199,-1386.96,0.00015616,2]
[346459376,1734983489213,-2428.76,0.00015616,2]
[346459377,1734983489229,-1431.08,0.00015616,2]
[346459378,1734983489242,-2535.1,0.00015616,2]
[346459379,1734983489256,-590.71,0.00015616,2]
[346459380,1734983489270,-500.0,0.00015616,2]
[346459381,1734983489284,-500.0,0.00015616,2]
[346459382,1734983489297,-500.0,0.00015616,2]
[346459383,1734983489311,-500.0,0.00015616,2]
[346459384,1734983489324,-500.0,0.00015616,2]
[346459385,1734983489337,-647.68,0.00015616,2]
[346459386,1734983489350,-2179.1,0.00015616,2]
[346459387,1734983489363,-503.57,0.00015616,2]
[346459388,1734983489377,-533.93,0.00015616,2]
[346459389,1734983489391,-1741.94,0.00015616,2]
[346459390,1734983489405,-500.0,0.00015616,2]
[346459391,1734983489420,-506.11,0.00015616,2]
[346459392,1734983489434,-2546.21,0.00015616,2]
[346459393,1734983489448,-500.0,0.00015616,2]
[346459394,1734983489462,-2384.93,0.00015616,2]
[346459395,1734983489475,-500.0,0.00015616,2]
[346459396,1734983489489,-500.0,0.00015616,2]
[346459397,1734983489502,-1472.51,0.00015616,2]
[346459398,1734983489516,-739.46,0.00015616,2]
[346459399,1734983489528,-2040.74,0.00015616,2]
[346459400,1734983489543,-500.0,0.00015616,2]
[346459401,1734983489556,-500.0,0.00015616,2]
[346459402,1734983489570,-2108.54,0.00015616,2]
[346459403,1734983489584,-1103.36,0.00015616,2]
[346459404,1734983489597,-603.59,0.00015616,2]
[346459405,1734983489610,-547.89039996,0.00015616,2]
[346459406,1734983489623,-1314.39,0.00015616,2]
[346459407,1734983489636,-681.79,0.00015616,2]
[346459408,1734983489649,-500.0,0.00015616,2]
[346459409,1734983489662,-1474.25,0.00015616,2]
[346459410,1734983489674,-569.96,0.00015616,2]
[346459411,1734983489686,-500.0,0.00015616,2]
[346459412,1734983489700,-2526.97,0.00015616,2]
[346459413,1734983489713,-588.45,0.00015616,2]
[346459414,1734983489726,-500.0,0.00015616,2]
[346459415,1734983489740,-562.03,0.00015616,2]
[346459416,1734983489753,-2097.31,0.00015616,2]
[346459417,1734983489766,-2272.82,0.00015616,2]
[346459418,1734983489778,-1399.67,0.00015616,2]
[346459419,1734983489791,-1081.13,0.00015616,2]
[346459420,1734983489804,-952.35,0.00015616,2]
[346459421,1734983489817,-766.53,0.00015616,2]
[346459422,1734983489830,-500.0,0.00015616,2]
[346459423,1734983489843,-971.56,0.00015616,2]
[346459424,1734983489857,-1033.9,0.00015616,2]
[346459425,1734983489870,-908.96,0.00015616,2]
[346459426,1734983489882,-1920.11,0.00015616,2]
[346459427,1734983489895,-500.0,0.00015616,2]
[346459428,1734983489914,-500.0,0.00015616,2]
[346459429,1734983489927,-1220.95,0.00015616,2]
[346459430,1734983489940,-500.0,0.00015616,2]
[346459431,1734983489953,-549.68,0.00015616,2]
[346459432,1734983489965,-2597.65,0.00015616,2]
[346459433,1734983489979,-500.0,0.00015616,2]
[346459434,1734983489991,-1679.77,0.00015616,2]
[346459435,1734983490005,-291.08839441,0.00015616,2]
[346459436,1734983490018,-500.0,0.00015616,2]
[346459437,1734983490031,-500.0,0.00015616,2]
[346459438,1734983490044,-2479.89,0.00015616,2]
[346459439,1734983490058,-500.0,0.00015616,2]
[346459440,1734983490070,-884.3,0.00015616,2]
[346459441,1734983490084,-533.99,0.00015616,2]
[346459442,1734983490096,-1337.77,0.00015616,2]
[346459443,1734983490109,-1234.01,0.00015616,2]
[346459444,1734983490123,-500.0,0.00015616,2]
[346459445,1734983490136,-1693.27,0.00015616,2]
[346459446,1734983490148,-1639.66,0.00015616,2]
[346459447,1734983490162,-516.99828635,0.00015616,2]
[346459448,1734983490175,-1258.33,0.00015616,2]
[346459449,1734983490189,-500.0,0.00015616,2]
[346459450,1734983490202,-865.68,0.00015616,2]
[346459451,1734983490215,-500.0,0.00015616,2]
[346459452,1734983490230,-1242.29,0.00015616,2]
[346459453,1734983490243,-558.44,0.00015616,2]
[346459454,1734983490256,-1883.5,0.00015616,2]
[346459455,1734983490269,-500.0,0.00015616,2]
[346459456,1734983490282,-500.0,0.00015616,2]
[346459457,1734983490296,-500.0,0.00015616,2]
[346459458,1734983490309,-1457.31,0.00015616,2]
[346459459,1734983490321,-500.0,0.00015616,2]
[346459460,1734983490335,-500.0,0.00015616,2]
[346459461,1734983490348,-744.66,0.00015616,2]
[346459462,1734983490360,-614.05,0.00015616,2]
[346459463,1734983490373,-505.95,0.00015616,2]
[346459464,1734983490386,-1106.29,0.00015616,2]
[346459465,1734983490398,-825.99,0.00015616,2]
[346459466,1734983490410,-614.73,0.00015616,2]
[346459467,1734983490424,-598.56,0.00015616,2]
[346459468,1734983490437,-2428.41,0.00015616,2]
[346459469,1734983490450,-488.55879446,0.00015616,2]
[346459470,1734983490463,-647.89,0.00015616,2]
[346459471,1734983490475,-555.89,0.00015616,2]
[346459472,1734983490489,-1850.68,0.00015616,2]
[346459473,1734983490501,-733.51,0.00015616,2]
[346459474,1734983490514,-1395.61,0.00015616,2]
[346459475,1734983490527,-500.0,0.00015616,2]
[346459476,1734983490539,-500.0,0.00015616,2]
[346459477,1734983490552,-500.0,0.00015616,2]
[346459478,1734983490567,-1898.84,0.00015616,2]
[346459479,1734983490580,-1190.22,0.00015616,2]
[346459480,1734983490593,-659.78,0.00015616,2]
[346459481,1734983490606,-520.67,0.00015616,2]
[346459482,1734983490619,-500.0,0.00015616,2]
[346459483,1734983490632,-706.12,0.00015616,2]
[346459484,1734983490645,-1161.74,0.00015616,2]
[346459485,1734983490658,-500.0,0.00015616,2]
[346459486,1734983490672,-792.15,0.00015616,2]
[346459487,1734983490685,-1198.3,0.00015616,2]
[346459488,1734983490697,-1131.14,0.00015616,2]
[346459489,1734983490710,-500.0,0.00015616,2]
[346459490,1734983490723,-1629.86,0.00015616,2]
[346459491,1734983490736,-500.0,0.00015616,2]
[346459492,1734983490749,-977.33,0.00015616,2]
[346459493,1734983490762,-500.0,0.00015616,2]
[346459494,1734983490777,-548.69,0.00015616,2]
[346459495,1734983490789,-500.0,0.00015616,2]
[346459496,1734983490802,-500.0,0.00015616,2]
[346459497,1734983490815,-628.27,0.00015616,2]
[346459498,1734983490828,-599.12,0.00015616,2]
[346459499,1734983490841,-500.0,0.00015616,2]
[346459500,1734983490855,-1391.9,0.00015616,2]
[346459501,1734983490869,-2005.44,0.00015616,2]
[346459502,1734983490882,-500.0,0.00015616,2]
[346459503,1734983490895,-500.0,0.00015616,2]
[346459504,1734983490908,-500.0,0.00015616,2]
[346459505,1734983490921,-1352.65,0.00015616,2]
[346459506,1734983490935,-2203.91,0.00015616,2]
[346459507,1734983490948,-929.9,0.00015616,2]
[346459508,1734983490961,-1256.82,0.00015616,2]
[346459509,1734983490974,-582.13,0.00015616,2]
[346459510,1734983490988,-500.0,0.00015616,2]
[346459511,1734983491001,-1626.83,0.00015616,2]
[346459512,1734983491015,-821.99,0.00015616,2]
[346459513,1734983491028,-500.0,0.00015616,2]
[346459514,1734983491042,-500.0,0.00015616,2]
[346459515,1734983491056,-500.0,0.00015616,2]
[346459516,1734983491070,-1342.26,0.00015616,2]
[346459517,1734983491084,-6402.42,0.00015616,2]
[346459518,1734983491463,-926.8,0.00015616,2]
[346459519,1734983491485,-1227.45,0.00015616,2]
[346459520,1734983491495,-500.0,0.00015616,2]
[346459521,1734983491504,-1859.49,0.00015616,2]
[346459522,1734983491513,-614.72,0.00015616,2]
[346459523,1734983491522,-1326.67,0.00015616,2]
[346459524,1734983491531,-500.0,0.00015616,2]
[346459525,1734983491542,-500.0,0.00015616,2]
[346459526,1734983491553,-596.52,0.00015616,2]
[346459527,1734983491563,-1015.69,0.00015616,2]
[346459528,1734983491572,-500.0,0.00015616,2]
[346459529,1734983491581,-500.0,0.00015616,2]
[346459530,1734983491590,-1210.05,0.00015616,2]
[346459531,1734983491599,-1848.4,0.00015616,2]
[346459532,1734983491609,-574.22,0.00015616,2]
[346459533,1734983491618,-1285.29,0.00015616,2]
[346459534,1734983491627,-500.0,0.00015616,2]
[346459535,1734983491636,-350.66665043,0.00015616,2]
[346459536,1734983491646,-2751.45,0.00015616,2]
[346459537,1734983491656,-346.25622743,0.00015616,2]
[346459538,1734983491665,-1128.87,0.00015616,2]
[346459539,1734983491674,-500.0,0.00015616,2]
[346459540,1734983491683,-683.58,0.00015616,2]
[346459541,1734983491693,-6056.43,0.00015616,2]
[346459542,1734983491703,-1154.43,0.00015616,2]
[346459543,1734983491712,-500.0,0.00015616,2]
[346459544,1734983491722,-500.0,0.00015616,2]
[346459545,1734983491732,-11553.88,0.00015616,2]
[346459546,1734983491741,-3461.58,0.00015616,2]
[346459547,1734983491750,-2563.93,0.00015616,2]
[346459548,1734983491759,-1292.7,0.00015616,2]
[346459549,1734983491768,-500.0,0.00015616,2]
[346459550,1734983491778,-2781.72,0.00015616,2]
[346459551,1734983491787,-500.0,0.00015616,2]
[346459552,1734983491796,-1045.69,0.00015616,2]
[346459553,1734983491806,-500.0,0.00015616,2]
[346459554,1734983491815,-554.57,0.00015616,2]
[346459555,1734983491825,-1274.89,0.00015616,2]
[346459556,1734983491834,-1146.69,0.00015616,2]
[346459557,1734983491844,-500.0,0.00015616,2]
[346459558,1734983491853,-500.0,0.00015616,2]
[346459559,1734983491863,-948.38,0.00015616,2]
[346459560,1734983491872,-1729.1,0.00015616,2]
[346459561,1734983491882,-1060.71,0.00015616,2]
[346459562,1734983491891,-15575.1,0.00015616,2]
[346459563,1734983491901,-1437.23,0.00015616,2]
[346459564,1734983491911,-500.0,0.00015616,2]
[346459565,1734983491920,-3891.1,0.00015616,2]
[346459566,1734983491930,-2142.93,0.00015616,2]
[346459567,1734983491939,-920.78,0.00015616,2]
[346459568,1734983491948,-736.03,0.00015616,2]
[346459569,1734983491957,-1226.17,0.00015616,2]
[346459570,1734983491967,-500.0,0.00015616,2]
[346459571,1734983491976,-1074.33,0.00015616,2]
[346459572,1734983491986,-368.45,0.00015616,2]
[346459573,1734983491996,-6302.87,0.00015616,2]
[346459574,1734983492005,-3579.93,0.00015616,2]
[346459575,1734983492014,-678.95,0.00015616,2]
[346459576,1734983492024,-500.0,0.00015616,2]
[346459577,1734983492033,-1468.11,0.00015616,2]
[346459578,1734983492043,-695.77,0.00015616,2]
[346459579,1734983492052,-7214.02,0.00015616,2]
[346459580,1734983492061,-500.0,0.00015616,2]
[346459581,1734983492071,-6586.38,0.00015616,2]
[346459582,1734983492080,-500.0,0.00015616,2]
[346459583,1734983492090,-1410.03,0.00015616,2]
[346459584,1734983492099,-500.0,0.00015616,2]
[346459585,1734983492109,-2688.66,0.00015616,2]
[346459586,1734983492118,-1472.35,0.00015616,2]
[346459587,1734983492127,-1255.72,0.00015616,2]
[346459588,1734983492137,-1233.64,0.00015616,2]
[346459589,1734983492146,-701.82,0.00015616,2]
[346459590,1734983492156,-5090.58,0.00015616,2]
[346459591,1734983492165,-500.0,0.00015616,2]
[346459592,1734983492174,-500.0,0.00015616,2]
[346459593,1734983492184,-3635.2,0.00015616,2]
[346459594,1734983492194,-869.32,0.00015616,2]
[346459595,1734983492204,-1046.58,0.00015616,2]
[346459596,1734983492213,-627.84,0.00015616,2]
[346459597,1734983492223,-4671.0,0.00015616,2]
[346459598,1734983492235,-4686.61,0.00015616,2]
[346459599,1734983492245,-500.0,0.00015616,2]
[346459600,1734983492254,-630.7,0.00015616,2]
[346459601,1734983492263,-820.95,0.00015616,2]
[346459602,1734983492273,-1836.15,0.00015616,2]
[346459603,1734983492283,-1130.83,0.00015616,2]
[346459604,1734983492293,-2323.91,0.00015616,2]
[346459605,1734983492304,-2995.53,0.00015616,2]
[346459606,1734983492314,-516.26,0.00015616,2]
[346459607,1734983492323,-500.0,0.00015616,2]
[346459608,1734983492332,-500.0,0.00015616,2]
[346459609,1734983492342,-1155.82,0.00015616,2]
[346459610,1734983492351,-1123.17,0.00015616,2]
[346459611,1734983492360,-2403.14,0.00015616,2]
[346459612,1734983492369,-810.25,0.00015616,2]
[346459613,1734983492378,-902.0,0.00015616,2]
[346459614,1734983492387,-1314.92,0.00015616,2]
[346459615,1734983492396,-500.0,0.00015616,2]
[346459616,1734983492406,-500.0,0.00015616,2]
[346459617,1734983492416,-5525.58,0.00015616,2]
[346459618,1734983492425,-512.09,0.00015616,2]
[346459619,1734983492434,-500.0,0.00015616,2]
[346459620,1734983492443,-500.0,0.00015616,2]
[346459621,1734983492452,-666.71,0.00015616,2]
[346459622,1734983492461,-2455.92,0.00015616,2]
[346459623,1734983492470,-872.99,0.00015616,2]
[346459624,1734983492479,-4918.98,0.00015616,2]
[346459625,1734983492489,-500.0,0.00015616,2]
[346459626,1734983492498,-500.0,0.00015616,2]
[346459627,1734983492507,-500.0,0.00015616,2]
[346459628,1734983492516,-4475.48,0.00015616,2]